[Event "Late-Titled-Tuesday-Blitz-January-23-2024"]
[Site "Chess.com"]
[Date "2024.01.23"]
[Round "10"]
[White "yobdc"]
[Black "ITheOnlyME"]
[Result "1-0"]
[WhiteElo "2550"]
[BlackElo "2394"]
[TimeControl "180+1"]
[EndTime "15:50:24 PST"]
[Termination "yobdc won by resignation"]

1. d4 {[%clk 0:02:58.5]} 1... Nf6 {[%clk 0:02:59.9]} 2. c4 {[%clk 0:02:58.5]}
2... g6 {[%clk 0:03:00.5]} 3. Nc3 {[%clk 0:02:58.7]} 3... Bg7 {[%clk 0:03:01.3]}
4. e4 {[%clk 0:02:59.1]} 4... d6 {[%clk 0:03:02]} 5. h3 {[%clk 0:02:52.4]} 5...
O-O {[%clk 0:03:01.9]} 6. Be3 {[%clk 0:02:52.7]} 6... e5 {[%clk 0:02:59.9]} 7.
d5 {[%clk 0:02:52.9]} 7... a5 {[%clk 0:03:00.4]} 8. g4 {[%clk 0:02:52.5]} 8...
Na6 {[%clk 0:03:00.8]} 9. Nge2 {[%clk 0:02:52.7]} 9... Ne8 {[%clk 0:02:53.5]}
10. Ng3 {[%clk 0:02:52.4]} 10... Nc5 {[%clk 0:02:47.7]} 11. Be2 {[%clk
0:02:37.9]} 11... c6 {[%clk 0:02:43.5]} 12. h4 {[%clk 0:02:35.8]} 12... cxd5
{[%clk 0:02:24.3]} 13. cxd5 {[%clk 0:02:35.8]} 13... f5 {[%clk 0:02:24.8]} 14.
gxf5 {[%clk 0:02:34.2]} 14... gxf5 {[%clk 0:02:25.7]} 15. exf5 {[%clk
0:02:32.7]} 15... Bxf5 {[%clk 0:02:26.6]} 16. Nxf5 {[%clk 0:02:32.6]} 16... Rxf5
{[%clk 0:02:27.5]} 17. Bg4 {[%clk 0:02:29.1]} 17... Rf8 {[%clk 0:02:22.1]} 18.
h5 {[%clk 0:02:10.9]} 18... h6 {[%clk 0:02:17.4]} 19. Rg1 {[%clk 0:01:58.6]}
19... Kh8 {[%clk 0:02:16.4]} 20. Qd2 {[%clk 0:01:50]} 20... Qf6 {[%clk 0:02:16]}
21. Be2 {[%clk 0:01:32.4]} 21... e4 {[%clk 0:02:05.6]} 22. Rg6 {[%clk
0:01:07.5]} 22... Qf5 {[%clk 0:02:05.6]} 23. O-O-O {[%clk 0:00:57.8]} 23... Nd3+
{[%clk 0:01:39.9]} 24. Bxd3 {[%clk 0:00:49]} 24... exd3 {[%clk 0:01:38.5]} 25.
Bxh6 {[%clk 0:00:46.5]} 25... Qxh5 {[%clk 0:01:37.6]} 26. Bxg7+ {[%clk
0:00:44.6]} 26... Nxg7 {[%clk 0:01:15.9]} 27. Rh6+ {[%clk 0:00:44]} 27... Kg8
{[%clk 0:01:16.6]} 28. Rxh5 {[%clk 0:00:43.6]} 28... Nxh5 {[%clk 0:01:17.5]} 1-0

[Event "Late-Titled-Tuesday-Blitz-January-23-2024"]
[Site "Chess.com"]
[Date "2024.01.23"]
[Round "10"]
[White "Igor_Lysyj"]
[Black "ansko1999"]
[Result "1-0"]
[WhiteElo "2890"]
[BlackElo "2711"]
[TimeControl "180+1"]
[EndTime "15:50:27 PST"]
[Termination "Igor_Lysyj won by resignation"]

1. d4 {[%clk 0:02:59.3]} 1... Nf6 {[%clk 0:02:59.7]} 2. c4 {[%clk 0:02:59.1]}
2... e6 {[%clk 0:02:58.5]} 3. Nf3 {[%clk 0:02:58.5]} 3... b6 {[%clk 0:02:56.1]}
4. a3 {[%clk 0:02:54.4]} 4... Bb7 {[%clk 0:02:54.1]} 5. Nc3 {[%clk 0:02:54]}
5... d5 {[%clk 0:02:54.6]} 6. Bf4 {[%clk 0:02:53.4]} 6... Nbd7 {[%clk
0:02:47.5]} 7. Nb5 {[%clk 0:02:51.2]} 7... Rc8 {[%clk 0:02:26.3]} 8. Nxa7 {[%clk
0:02:51.1]} 8... Ra8 {[%clk 0:02:26.5]} 9. Nb5 {[%clk 0:02:50.6]} 9... Rc8
{[%clk 0:02:26.8]} 10. e3 {[%clk 0:02:50.3]} 10... dxc4 {[%clk 0:02:23.4]} 11.
Bxc4 {[%clk 0:02:49.4]} 11... Be7 {[%clk 0:02:23.4]} 12. O-O {[%clk 0:02:46.1]}
12... Nh5 {[%clk 0:02:22.1]} 13. Bg3 {[%clk 0:02:43.6]} 13... O-O {[%clk
0:02:21.3]} 14. Rc1 {[%clk 0:02:41.7]} 14... Nxg3 {[%clk 0:02:19.8]} 15. hxg3
{[%clk 0:02:41.4]} 15... c5 {[%clk 0:02:14.7]} 16. d5 {[%clk 0:02:38.8]} 16...
exd5 {[%clk 0:02:11.1]} 17. Bxd5 {[%clk 0:02:38.9]} 17... Ba6 {[%clk 0:02:11.2]}
18. Bc4 {[%clk 0:02:35.4]} 18... Nf6 {[%clk 0:02:06.7]} 19. Qb3 {[%clk 0:02:33]}
19... Ng4 {[%clk 0:01:50.4]} 20. Rfd1 {[%clk 0:02:30.1]} 20... Qe8 {[%clk
0:01:50.6]} 21. a4 {[%clk 0:02:28.6]} 21... Kh8 {[%clk 0:01:47]} 22. Na7 {[%clk
0:02:16]} 22... Bxc4 {[%clk 0:01:40.9]} 23. Qxc4 {[%clk 0:02:15.7]} 23... Ra8
{[%clk 0:01:39]} 24. Nb5 {[%clk 0:02:14.2]} 24... f5 {[%clk 0:01:37.5]} 25. Nc7
{[%clk 0:02:05.8]} 25... Qh5 {[%clk 0:01:34.2]} 26. Nxa8 {[%clk 0:02:05]} 26...
Rf6 {[%clk 0:01:19.4]} 27. Qf4 {[%clk 0:01:27.4]} 27... Nh2 {[%clk 0:00:48.5]}
28. Nxh2 {[%clk 0:01:18.6]} 28... g5 {[%clk 0:00:48.4]} 29. Qe5 {[%clk
0:01:12.2]} 1-0

[Event "Late-Titled-Tuesday-Blitz-January-23-2024"]
[Site "Chess.com"]
[Date "2024.01.23"]
[Round "10"]
[White "bazar-wokzal"]
[Black "cthulhuuu"]
[Result "1-0"]
[WhiteElo "2601"]
[BlackElo "2468"]
[TimeControl "180+1"]
[EndTime "15:50:39 PST"]
[Termination "bazar-wokzal won on time"]

1. e4 {[%clk 0:03:00.9]} 1... d6 {[%clk 0:02:59.7]} 2. f4 {[%clk 0:03:00.7]}
2... Nf6 {[%clk 0:03:00.2]} 3. Nc3 {[%clk 0:03:00.4]} 3... g6 {[%clk 0:02:59.1]}
4. Nf3 {[%clk 0:02:59.7]} 4... Bg7 {[%clk 0:02:59.4]} 5. e5 {[%clk 0:03:00.3]}
5... dxe5 {[%clk 0:02:54.2]} 6. fxe5 {[%clk 0:03:01.2]} 6... Nd5 {[%clk
0:02:52.4]} 7. d4 {[%clk 0:03:00.5]} 7... O-O {[%clk 0:02:47.4]} 8. Bc4 {[%clk
0:02:57.6]} 8... e6 {[%clk 0:02:21.5]} 9. Bg5 {[%clk 0:02:50.2]} 9... Qd7 {[%clk
0:02:09]} 10. Qd2 {[%clk 0:02:47.1]} 10... c5 {[%clk 0:02:06.4]} 11. dxc5 {[%clk
0:02:38.4]} 11... Nxc3 {[%clk 0:01:36.5]} 12. Qxc3 {[%clk 0:02:35.6]} 12... Qc7
{[%clk 0:01:30.4]} 13. b4 {[%clk 0:02:34]} 13... a5 {[%clk 0:01:27]} 14. a3
{[%clk 0:02:33.3]} 14... axb4 {[%clk 0:01:27.1]} 15. axb4 {[%clk 0:02:34.1]}
15... Rxa1+ {[%clk 0:01:26.9]} 16. Qxa1 {[%clk 0:02:35]} 16... b6 {[%clk
0:01:27.2]} 17. O-O {[%clk 0:02:28.4]} 17... bxc5 {[%clk 0:01:26.5]} 18. b5
{[%clk 0:02:28.2]} 18... Bb7 {[%clk 0:01:19.6]} 19. Bf6 {[%clk 0:02:22.1]} 19...
Nd7 {[%clk 0:01:17]} 20. Ng5 {[%clk 0:02:04.6]} 20... h6 {[%clk 0:00:46.9]} 21.
Bxg7 {[%clk 0:02:01.8]} 21... Kxg7 {[%clk 0:00:47.8]} 22. Rxf7+ {[%clk
0:02:01.1]} 22... Kg8 {[%clk 0:00:01.5]} 23. Nxe6 {[%clk 0:01:56.5]} 23... Ra8
{[%clk 0:00:01.2]} 24. Qxa8+ {[%clk 0:01:51.3]} 24... Bxa8 {[%clk 0:00:02.1]}
25. Nxc7 {[%clk 0:01:50.9]} 25... Nxe5 {[%clk 0:00:03]} 26. Nxa8 {[%clk
0:01:46.2]} 26... Nxf7 {[%clk 0:00:02]} 27. b6 {[%clk 0:01:45.6]} 27... Kf8
{[%clk 0:00:01.8]} 28. Bxf7 {[%clk 0:01:45.5]} 28... Kxf7 {[%clk 0:00:02.1]} 29.
b7 {[%clk 0:01:45.8]} 1-0

[Event "Late-Titled-Tuesday-Blitz-January-23-2024"]
[Site "Chess.com"]
[Date "2024.01.23"]
[Round "10"]
[White "MokshanovAlexey"]
[Black "Defenstrator"]
[Result "1-0"]
[WhiteElo "2646"]
[BlackElo "2506"]
[TimeControl "180+1"]
[EndTime "15:50:47 PST"]
[Termination "MokshanovAlexey won by resignation"]

1. e4 {[%clk 0:03:00.9]} 1... c6 {[%clk 0:02:57]} 2. d4 {[%clk 0:03:00.4]} 2...
d5 {[%clk 0:02:56.8]} 3. e5 {[%clk 0:03:00.8]} 3... Bf5 {[%clk 0:02:55.4]} 4. h4
{[%clk 0:02:59.4]} 4... Qb6 {[%clk 0:02:48.4]} 5. g4 {[%clk 0:02:50.6]} 5... Bd7
{[%clk 0:02:47.6]} 6. c3 {[%clk 0:02:48]} 6... c5 {[%clk 0:02:40.4]} 7. dxc5
{[%clk 0:02:34.7]} 7... Qc7 {[%clk 0:02:33.4]} 8. f4 {[%clk 0:02:32.7]} 8... h5
{[%clk 0:02:24.6]} 9. gxh5 {[%clk 0:02:26.4]} 9... Nh6 {[%clk 0:02:14.8]} 10.
Be3 {[%clk 0:02:21.1]} 10... Ng4 {[%clk 0:02:08.5]} 11. Bd4 {[%clk 0:02:19.4]}
11... f6 {[%clk 0:02:00.4]} 12. Na3 {[%clk 0:01:01]} 12... fxe5 {[%clk
0:01:49.3]} 13. Nb5 {[%clk 0:01:00.1]} 13... Qc8 {[%clk 0:01:49.5]} 14. fxe5
{[%clk 0:00:57.4]} 14... Rxh5 {[%clk 0:01:39.3]} 15. Nf3 {[%clk 0:00:48.1]}
15... Nc6 {[%clk 0:01:37.4]} 16. Qe2 {[%clk 0:00:42.8]} 16... a6 {[%clk
0:01:25.9]} 17. Na3 {[%clk 0:00:39.5]} 17... Qc7 {[%clk 0:01:24.3]} 18. O-O-O
{[%clk 0:00:34.8]} 18... Nh6 {[%clk 0:01:08.3]} 19. e6 {[%clk 0:00:33.8]} 19...
Bc8 {[%clk 0:00:59.3]} 20. Ng5 {[%clk 0:00:29.9]} 20... Qf4+ {[%clk 0:00:54.2]}
21. Be3 {[%clk 0:00:29.8]} 21... Qe5 {[%clk 0:00:54.2]} 22. Qxh5+ {[%clk
0:00:29.5]} 1-0

[Event "Late-Titled-Tuesday-Blitz-January-23-2024"]
[Site "Chess.com"]
[Date "2024.01.23"]
[Round "10"]
[White "AlexOstrovskiy"]
[Black "ArtemDyachuk"]
[Result "0-1"]
[WhiteElo "2752"]
[BlackElo "2657"]
[TimeControl "180+1"]
[EndTime "15:50:55 PST"]
[Termination "ArtemDyachuk won on time"]

1. e4 {[%clk 0:03:00.9]} 1... c5 {[%clk 0:02:57.4]} 2. Nc3 {[%clk 0:02:59.6]}
2... Nc6 {[%clk 0:02:56.8]} 3. Bb5 {[%clk 0:02:59.4]} 3... Nd4 {[%clk
0:02:56.3]} 4. Nf3 {[%clk 0:02:58.2]} 4... Nxb5 {[%clk 0:02:55.8]} 5. Nxb5
{[%clk 0:02:59.1]} 5... a6 {[%clk 0:02:56.1]} 6. Nc3 {[%clk 0:02:58.5]} 6... b5
{[%clk 0:02:56.5]} 7. d4 {[%clk 0:02:58.6]} 7... cxd4 {[%clk 0:02:56.5]} 8. Qxd4
{[%clk 0:02:59.5]} 8... Bb7 {[%clk 0:02:57]} 9. Bg5 {[%clk 0:02:58.6]} 9... Rc8
{[%clk 0:02:50.6]} 10. O-O {[%clk 0:02:42.4]} 10... h6 {[%clk 0:02:48.3]} 11.
Bh4 {[%clk 0:02:41.8]} 11... Nf6 {[%clk 0:02:48.3]} 12. e5 {[%clk 0:02:39.5]}
12... Rc4 {[%clk 0:02:47.9]} 13. Qd3 {[%clk 0:01:54.3]} 13... Nh5 {[%clk
0:02:45.6]} 14. Nd5 {[%clk 0:01:46.5]} 14... Rxh4 {[%clk 0:02:25.2]} 15. Nxh4
{[%clk 0:01:44.7]} 15... e6 {[%clk 0:02:25.7]} 16. Ng6 {[%clk 0:01:34.1]} 16...
Bxd5 {[%clk 0:02:12.1]} 17. Nxh8 {[%clk 0:01:34.1]} 17... Qg5 {[%clk 0:02:12.4]}
18. Qxd5 {[%clk 0:00:11]} 18... exd5 {[%clk 0:02:11.6]} 19. a4 {[%clk
0:00:11.2]} 19... Nf4 {[%clk 0:02:11.2]} 20. g3 {[%clk 0:00:11.2]} 20... Ne6
{[%clk 0:01:46.2]} 21. f4 {[%clk 0:00:10.8]} 21... Bc5+ {[%clk 0:01:43.9]} 22.
Kh1 {[%clk 0:00:09.1]} 22... Qf5 {[%clk 0:01:43.7]} 23. Rfe1 {[%clk 0:00:04]}
23... Qh5 {[%clk 0:01:25.3]} 24. Rf1 {[%clk 0:00:03.8]} 24... b4 {[%clk
0:01:21]} 25. Rad1 {[%clk 0:00:03.5]} 25... Qe2 {[%clk 0:01:19.9]} 26. f5 {[%clk
0:00:01.3]} 26... Qe4+ {[%clk 0:01:19.5]} 0-1

[Event "Late-Titled-Tuesday-Blitz-January-23-2024"]
[Site "Chess.com"]
[Date "2024.01.23"]
[Round "10"]
[White "emeli_chess"]
[Black "PabloZarnicki"]
[Result "1-0"]
[WhiteElo "2496"]
[BlackElo "2588"]
[TimeControl "180+1"]
[EndTime "15:51:07 PST"]
[Termination "emeli_chess won by checkmate"]

1. d4 {[%clk 0:02:55.6]} 1... Nf6 {[%clk 0:02:59.4]} 2. c4 {[%clk 0:02:55.1]}
2... e6 {[%clk 0:02:59.5]} 3. Nc3 {[%clk 0:02:54.6]} 3... Bb4 {[%clk 0:02:50]}
4. Qc2 {[%clk 0:02:54.5]} 4... O-O {[%clk 0:02:31.8]} 5. e4 {[%clk 0:02:52.9]}
5... d6 {[%clk 0:02:30.5]} 6. e5 {[%clk 0:02:51.8]} 6... Nfd7 {[%clk 0:02:08.7]}
7. Nf3 {[%clk 0:02:51]} 7... Nc6 {[%clk 0:02:07]} 8. Bf4 {[%clk 0:02:49.6]} 8...
Nxd4 {[%clk 0:02:00.3]} 9. Nxd4 {[%clk 0:02:47.9]} 9... dxe5 {[%clk 0:02:00.7]}
10. Nxe6 {[%clk 0:02:35.1]} 10... fxe6 {[%clk 0:01:50.1]} 11. Be3 {[%clk
0:02:34.9]} 11... e4 {[%clk 0:01:32.6]} 12. a3 {[%clk 0:02:32.3]} 12... Bxc3+
{[%clk 0:01:31]} 13. Qxc3 {[%clk 0:02:32.7]} 13... Nf6 {[%clk 0:01:26.8]} 14.
Rd1 {[%clk 0:02:27.9]} 14... Qe7 {[%clk 0:01:25]} 15. Be2 {[%clk 0:02:27.5]}
15... b6 {[%clk 0:01:20.3]} 16. O-O {[%clk 0:02:25.9]} 16... Bb7 {[%clk
0:01:20.6]} 17. c5 {[%clk 0:02:24.4]} 17... Bd5 {[%clk 0:01:19.4]} 18. b4 {[%clk
0:02:12.1]} 18... Rad8 {[%clk 0:01:18.6]} 19. h3 {[%clk 0:01:57.6]} 19... Qf7
{[%clk 0:01:13.2]} 20. Qe5 {[%clk 0:01:47.3]} 20... bxc5 {[%clk 0:01:01]} 21.
Bxc5 {[%clk 0:01:43.7]} 21... Rfe8 {[%clk 0:01:01.6]} 22. Be3 {[%clk 0:01:36.7]}
22... c6 {[%clk 0:00:57.7]} 23. b5 {[%clk 0:01:27.5]} 23... Nd7 {[%clk
0:00:49.8]} 24. Qg5 {[%clk 0:01:22.3]} 24... c5 {[%clk 0:00:42.7]} 25. a4 {[%clk
0:01:20.3]} 25... Rc8 {[%clk 0:00:41.8]} 26. Rc1 {[%clk 0:01:07]} 26... Qf6
{[%clk 0:00:26.4]} 27. Qg3 {[%clk 0:01:02.4]} 27... c4 {[%clk 0:00:21.4]} 28.
Rfd1 {[%clk 0:01:01.6]} 28... c3 {[%clk 0:00:20.3]} 29. Bd4 {[%clk 0:01:00.5]}
29... Qf5 {[%clk 0:00:18.6]} 30. Qxg7# {[%clk 0:00:59.4]} 1-0

[Event "Late-Titled-Tuesday-Blitz-January-23-2024"]
[Site "Chess.com"]
[Date "2024.01.23"]
[Round "10"]
[White "sergiochess83"]
[Black "brunoo2003"]
[Result "1/2-1/2"]
[WhiteElo "2865"]
[BlackElo "2559"]
[TimeControl "180+1"]
[EndTime "15:51:12 PST"]
[Termination "Game drawn by repetition"]

1. d4 {[%clk 0:03:00.9]} 1... Nf6 {[%clk 0:02:39.5]} 2. c4 {[%clk 0:02:58.6]}
2... e6 {[%clk 0:02:37.7]} 3. g3 {[%clk 0:02:57.6]} 3... d5 {[%clk 0:02:37.2]}
4. Bg2 {[%clk 0:02:57.8]} 4... dxc4 {[%clk 0:02:36]} 5. Nf3 {[%clk 0:02:57.6]}
5... Bd7 {[%clk 0:02:31]} 6. Ne5 {[%clk 0:02:54.6]} 6... Bc6 {[%clk 0:02:31.1]}
7. Nxc6 {[%clk 0:02:54]} 7... Nxc6 {[%clk 0:02:32]} 8. O-O {[%clk 0:02:52.5]}
8... Qd7 {[%clk 0:02:29.8]} 9. e3 {[%clk 0:02:52.3]} 9... Rd8 {[%clk 0:02:29.2]}
10. Nd2 {[%clk 0:02:39.9]} 10... e5 {[%clk 0:02:25.1]} 11. Nxc4 {[%clk 0:02:40]}
11... exd4 {[%clk 0:02:25.2]} 12. Qb3 {[%clk 0:02:40.1]} 12... Rb8 {[%clk
0:02:16.8]} 13. Rd1 {[%clk 0:02:31]} 13... Be7 {[%clk 0:02:15.9]} 14. exd4
{[%clk 0:02:29.5]} 14... Nxd4 {[%clk 0:02:13.2]} 15. Qe3 {[%clk 0:02:01]} 15...
c5 {[%clk 0:02:08.7]} 16. b4 {[%clk 0:01:55.7]} 16... O-O {[%clk 0:02:03.7]} 17.
bxc5 {[%clk 0:01:55.7]} 17... Bxc5 {[%clk 0:02:04.6]} 18. Bb2 {[%clk 0:01:55.4]}
18... Rbd8 {[%clk 0:01:57.2]} 19. Rd2 {[%clk 0:01:42.7]} 19... Rfe8 {[%clk
0:01:53.6]} 20. Qg5 {[%clk 0:01:36.9]} 20... Qf5 {[%clk 0:01:49.9]} 21. Qxf5
{[%clk 0:01:32.4]} 21... Nxf5 {[%clk 0:01:50.8]} 22. Rxd8 {[%clk 0:01:26.6]}
22... Rxd8 {[%clk 0:01:50.3]} 23. Bxf6 {[%clk 0:01:27.3]} 23... gxf6 {[%clk
0:01:50]} 24. Bxb7 {[%clk 0:01:26.2]} 24... Nd6 {[%clk 0:01:39.6]} 25. Nxd6
{[%clk 0:01:15.5]} 25... Rxd6 {[%clk 0:01:40.5]} 26. Rc1 {[%clk 0:01:15.3]}
26... Bb6 {[%clk 0:01:38.4]} 27. Rc2 {[%clk 0:01:15.4]} 27... Ba5 {[%clk
0:01:33.9]} 28. Be4 {[%clk 0:00:59.9]} 28... Rd2 {[%clk 0:01:26.5]} 29. Rxd2
{[%clk 0:00:51.4]} 29... Bxd2 {[%clk 0:01:27.4]} 30. Kg2 {[%clk 0:00:49.6]}
30... h6 {[%clk 0:01:24.8]} 31. Kh3 {[%clk 0:00:50]} 31... Kf8 {[%clk
0:01:22.1]} 32. Kg4 {[%clk 0:00:50.1]} 32... Kg7 {[%clk 0:01:22.1]} 33. f4
{[%clk 0:00:50]} 33... Be3 {[%clk 0:01:20.6]} 34. Kf5 {[%clk 0:00:48.3]} 34...
Bg1 {[%clk 0:01:20]} 35. h3 {[%clk 0:00:48]} 35... Bf2 {[%clk 0:01:19.3]} 36.
Kg4 {[%clk 0:00:47.3]} 36... Bg1 {[%clk 0:01:18.8]} 37. Bd5 {[%clk 0:00:47.4]}
37... Bb6 {[%clk 0:01:19.7]} 38. a4 {[%clk 0:00:47.7]} 38... Bc5 {[%clk
0:01:18.8]} 39. Bc4 {[%clk 0:00:45.2]} 39... Bd4 {[%clk 0:01:18.6]} 40. h4
{[%clk 0:00:44.4]} 40... Bf2 {[%clk 0:01:16.9]} 41. h5 {[%clk 0:00:44.4]} 41...
Be1 {[%clk 0:01:16.4]} 42. Bd3 {[%clk 0:00:43.4]} 42... a5 {[%clk 0:01:13.8]}
43. Bc2 {[%clk 0:00:41.9]} 43... Bb4 {[%clk 0:01:14.7]} 44. Kf5 {[%clk
0:00:41.7]} 44... Be1 {[%clk 0:01:13.6]} 45. g4 {[%clk 0:00:41.6]} 45... Bd2
{[%clk 0:01:13.2]} 46. Bb3 {[%clk 0:00:40.6]} 46... Bc1 {[%clk 0:01:13.1]} 47.
Bc4 {[%clk 0:00:40.3]} 47... Bd2 {[%clk 0:01:13.1]} 48. Bb3 {[%clk 0:00:38.2]}
48... Bc1 {[%clk 0:01:12.4]} 49. Bc4 {[%clk 0:00:38.6]} 49... Bd2 {[%clk
0:01:12]} 50. Bb3 {[%clk 0:00:39]} 1/2-1/2

[Event "Late-Titled-Tuesday-Blitz-January-23-2024"]
[Site "Chess.com"]
[Date "2024.01.23"]
[Round "10"]
[White "Nf3c5"]
[Black "PawnEatingZombie"]
[Result "1-0"]
[WhiteElo "2506"]
[BlackElo "2117"]
[TimeControl "180+1"]
[EndTime "15:51:19 PST"]
[Termination "Nf3c5 won by resignation"]

1. d4 {[%clk 0:02:56.4]} 1... Nf6 {[%clk 0:02:59.3]} 2. Nf3 {[%clk 0:02:56.1]}
2... g6 {[%clk 0:02:59.6]} 3. Bg5 {[%clk 0:02:54.4]} 3... Bg7 {[%clk 0:02:59.7]}
4. Nbd2 {[%clk 0:02:55]} 4... O-O {[%clk 0:03:00]} 5. c3 {[%clk 0:02:53]} 5...
d6 {[%clk 0:02:56.5]} 6. e4 {[%clk 0:02:53]} 6... c5 {[%clk 0:02:57]} 7. dxc5
{[%clk 0:02:52.7]} 7... dxc5 {[%clk 0:02:56.1]} 8. Bc4 {[%clk 0:02:53.3]} 8...
Nc6 {[%clk 0:02:48.5]} 9. O-O {[%clk 0:02:53]} 9... Qc7 {[%clk 0:02:46.9]} 10.
Qe2 {[%clk 0:02:50.9]} 10... b6 {[%clk 0:02:40]} 11. e5 {[%clk 0:02:26]} 11...
Nh5 {[%clk 0:02:29.8]} 12. Rae1 {[%clk 0:02:15.5]} 12... h6 {[%clk 0:02:18.8]}
13. Bh4 {[%clk 0:02:13.2]} 13... Nf4 {[%clk 0:02:17.3]} 14. Qe3 {[%clk
0:02:12.8]} 14... g5 {[%clk 0:02:11.6]} 15. Bg3 {[%clk 0:02:12.7]} 15... Ne6
{[%clk 0:02:00.6]} 16. h4 {[%clk 0:02:09.5]} 16... g4 {[%clk 0:01:56.7]} 17. Nh2
{[%clk 0:02:07.7]} 17... h5 {[%clk 0:01:56]} 18. Bd3 {[%clk 0:02:00.3]} 18...
Rd8 {[%clk 0:01:51.1]} 19. Bb1 {[%clk 0:01:47.5]} 19... Ba6 {[%clk 0:01:45.7]}
20. Ne4 {[%clk 0:01:33.5]} 20... Bxf1 {[%clk 0:01:38.6]} 21. Nxf1 {[%clk
0:01:34.4]} 21... Qd7 {[%clk 0:01:20.3]} 22. Ng5 {[%clk 0:01:28.9]} 22... Nxg5
{[%clk 0:01:18]} 23. Qxg5 {[%clk 0:01:27.7]} 23... Qe6 {[%clk 0:00:31.6]} 24.
Qxh5 {[%clk 0:01:25.1]} 24... Rd5 {[%clk 0:00:22]} 25. Bf5 {[%clk 0:00:51.9]}
25... Qh6 {[%clk 0:00:21.5]} 26. Qxg4 {[%clk 0:00:52.5]} 26... Nxe5 {[%clk
0:00:18.6]} 27. Bxe5 {[%clk 0:00:49.9]} 27... f6 {[%clk 0:00:15.1]} 28. Bf4
{[%clk 0:00:43]} 1-0

[Event "Late-Titled-Tuesday-Blitz-January-23-2024"]
[Site "Chess.com"]
[Date "2024.01.23"]
[Round "10"]
[White "Qvalda"]
[Black "Grandmaster2B"]
[Result "0-1"]
[WhiteElo "2439"]
[BlackElo "2776"]
[TimeControl "180+1"]
[EndTime "15:51:22 PST"]
[Termination "Grandmaster2B won by checkmate"]

1. Nf3 {[%clk 0:03:00.9]} 1... c6 {[%clk 0:03:00.9]} 2. g3 {[%clk 0:03:00.6]}
2... d5 {[%clk 0:03:01.8]} 3. Bg2 {[%clk 0:03:01.1]} 3... Nf6 {[%clk 0:03:01.5]}
4. O-O {[%clk 0:03:02]} 4... Bg4 {[%clk 0:03:01.3]} 5. c4 {[%clk 0:03:01.3]}
5... e6 {[%clk 0:03:01]} 6. Qb3 {[%clk 0:03:00.7]} 6... Qb6 {[%clk 0:03:00.5]}
7. d4 {[%clk 0:02:58.9]} 7... Nbd7 {[%clk 0:02:58.9]} 8. cxd5 {[%clk 0:02:58.7]}
8... exd5 {[%clk 0:02:56]} 9. Nc3 {[%clk 0:02:58.4]} 9... Bd6 {[%clk 0:02:55.2]}
10. h3 {[%clk 0:02:45.5]} 10... Bh5 {[%clk 0:02:53.2]} 11. Bf4 {[%clk
0:02:39.6]} 11... Bxf4 {[%clk 0:02:52.4]} 12. gxf4 {[%clk 0:02:40.5]} 12... O-O
{[%clk 0:02:50.4]} 13. e3 {[%clk 0:02:38.9]} 13... Ne8 {[%clk 0:02:47.1]} 14.
Ne5 {[%clk 0:02:38.5]} 14... Ndf6 {[%clk 0:02:46.9]} 15. Na4 {[%clk 0:02:35.3]}
15... Qc7 {[%clk 0:02:45.6]} 16. Nc5 {[%clk 0:02:34.5]} 16... Nd6 {[%clk
0:02:46]} 17. Kh1 {[%clk 0:02:32.9]} 17... Bg6 {[%clk 0:02:44.4]} 18. Bf3 {[%clk
0:02:29.8]} 18... Be4 {[%clk 0:02:39.5]} 19. Nxe4 {[%clk 0:02:26.4]} 19... Nfxe4
{[%clk 0:02:40.4]} 20. Qc2 {[%clk 0:02:24.6]} 20... f6 {[%clk 0:02:39.4]} 21.
Nd3 {[%clk 0:02:24.7]} 21... Qd7 {[%clk 0:02:36.4]} 22. Kh2 {[%clk 0:02:24.2]}
22... b6 {[%clk 0:02:36.2]} 23. Rg1 {[%clk 0:02:24.1]} 23... Rac8 {[%clk
0:02:35.1]} 24. Bg4 {[%clk 0:02:19.6]} 24... Nf5 {[%clk 0:02:34.3]} 25. Rg2
{[%clk 0:02:17.1]} 25... g6 {[%clk 0:02:32.4]} 26. Rag1 {[%clk 0:02:16.1]} 26...
Kh8 {[%clk 0:02:32.9]} 27. b4 {[%clk 0:02:13.5]} 27... Ned6 {[%clk 0:02:29.4]}
28. Qe2 {[%clk 0:02:08.4]} 28... Qf7 {[%clk 0:02:28.5]} 29. Qf3 {[%clk
0:02:07.7]} 29... Nh4 {[%clk 0:02:18]} 30. Qg3 {[%clk 0:02:04.2]} 30... Nxg2
{[%clk 0:02:18.5]} 31. Rxg2 {[%clk 0:02:05.1]} 31... Rc7 {[%clk 0:02:08.2]} 32.
h4 {[%clk 0:02:04.5]} 32... Ne4 {[%clk 0:02:06.1]} 33. Qh3 {[%clk 0:02:03.1]}
33... Qe7 {[%clk 0:02:01.6]} 34. f5 {[%clk 0:02:01.6]} 34... c5 {[%clk
0:01:58.7]} 35. bxc5 {[%clk 0:02:01]} 35... bxc5 {[%clk 0:01:59.6]} 36. fxg6
{[%clk 0:02:00.7]} 36... hxg6 {[%clk 0:02:00.5]} 37. h5 {[%clk 0:02:01]} 37...
g5 {[%clk 0:02:00.5]} 38. Qf3 {[%clk 0:01:49.7]} 38... c4 {[%clk 0:01:57.8]} 39.
Ne1 {[%clk 0:01:43.6]} 39... c3 {[%clk 0:01:53.2]} 40. Nc2 {[%clk 0:01:42.4]}
40... Rb7 {[%clk 0:01:52.1]} 41. Qf5 {[%clk 0:01:36.4]} 41... Rb2 {[%clk
0:01:50.5]} 42. Bd1 {[%clk 0:01:35.8]} 42... Rxa2 {[%clk 0:01:45.4]} 43. f3
{[%clk 0:01:22]} 43... Nd2 {[%clk 0:01:45.4]} 44. Qxd5 {[%clk 0:01:19.8]} 44...
Rxc2 {[%clk 0:01:45.2]} 45. Bxc2 {[%clk 0:01:15.1]} 45... Nf1+ {[%clk
0:01:45.6]} 46. Kg1 {[%clk 0:00:26.3]} 46... Nxe3 {[%clk 0:01:46.5]} 47. Qb3
{[%clk 0:00:05.8]} 47... Nxg2 {[%clk 0:01:46.3]} 48. Kxg2 {[%clk 0:00:05.9]}
48... Qe2+ {[%clk 0:01:46.5]} 49. Kg3 {[%clk 0:00:06]} 49... Qe1+ {[%clk
0:01:47]} 50. Kg4 {[%clk 0:00:06.3]} 50... f5+ {[%clk 0:01:39.4]} 51. Kxg5
{[%clk 0:00:06.1]} 51... Qg3+ {[%clk 0:01:39.7]} 52. Kh6 {[%clk 0:00:04.2]}
52... Qg7# {[%clk 0:01:40.6]} 0-1